[Event "NJSK 2018 Jeugd A"]
[Site "Assen, Netherlands"]
[Date "2018.04.29"]
[Round "1.6"]
[White "Van Baar, Esper"]
[Black "Reichardt, Robin"]
[Result "1-0"]
[TimeControl "40/90m+30m+30sec/move"]
[WhiteElo "2237"]
[BlackElo "1936"]

1. Nf3 {[%clk 01:30:57]} {[%emt 00:00:02]} Nf6 {[%clk 01:30:23]} {[%emt
00:00:40]} 2. g3 {[%clk 01:31:09]} {[%emt 00:00:15]} d5 {[%clk 01:30:23]}
{[%emt 00:00:30]} 3. Bg2 {[%clk 01:31:16]} {[%emt 00:00:22]} c5 {[%clk
01:30:08]} {[%emt 00:00:46]} 4. O-O {[%clk 01:28:16]} {[%emt 00:03:30]} Nc6
{[%clk 01:29:53]} {[%emt 00:00:45]} 5. d4 {[%clk 01:28:39]} {[%emt 00:00:07]}
Bf5 {[%clk 01:25:51]} {[%emt 00:04:32]} 6. c4 {[%clk 01:13:27]} {[%emt
00:15:41]} e6 {[%clk 01:20:14]} {[%emt 00:06:07]} 7. cxd5 {[%clk 01:11:04]}
{[%emt 00:02:53]} exd5 {[%clk 01:16:06]} {[%emt 00:04:40]} 8. Nc3 {[%clk
01:10:34]} {[%emt 00:00:59]} Be7 {[%clk 01:14:26]} {[%emt 00:02:09]} 9. dxc5
{[%clk 01:08:19]} {[%emt 00:02:46]} Bxc5 {[%clk 01:13:40]} {[%emt 00:01:15]} 10.
Bg5 {[%clk 00:57:02]} {[%emt 00:11:47]} d4 {[%clk 01:08:35]} {[%emt 00:05:36]}
11. Na4 {[%clk 00:51:23]} {[%emt 00:06:09]} Be7 {[%clk 01:04:54]} {[%emt
00:04:10]} 12. Rc1 {[%clk 00:48:43]} {[%emt 00:03:11]} O-O {[%clk 01:03:02]}
{[%emt 00:02:20]} 13. Nc5 {[%clk 00:41:33]} {[%emt 00:07:42]} Qb6 {[%clk
00:55:15]} {[%emt 00:08:16]} 14. Nh4 {[%clk 00:36:52]} {[%emt 00:05:12]} Bg4
{[%clk 00:41:09]} {[%emt 00:14:36]} 15. Nd3 {[%clk 00:28:12]} {[%emt 00:09:10]}
Rac8 {[%clk 00:37:54]} {[%emt 00:03:44]} 16. h3 {[%clk 00:26:48]} {[%emt
00:01:54]} Be6 {[%clk 00:34:36]} {[%emt 00:03:48]} 17. Qa4 {[%clk 00:24:38]}
{[%emt 00:02:41]} h6 {[%clk 00:29:19]} {[%emt 00:05:46]} 18. Bxf6 {[%clk
00:22:29]} {[%emt 00:02:39]} Bxf6 {[%clk 00:29:11]} {[%emt 00:00:38]} 19. Nf3
{[%clk 00:22:52]} {[%emt 00:00:08]} Bf5 {[%clk 00:24:40]} {[%emt 00:05:00]} 20.
Nd2 {[%clk 00:13:01]} {[%emt 00:10:20]} Bxd3 {[%clk 00:17:40]} {[%emt
00:07:31]} 21. exd3 {[%clk 00:13:25]} {[%emt 00:00:07]} Ne5 {[%clk 00:13:33]}
{[%emt 00:04:37]} 22. Qa3 {[%clk 00:12:30]} {[%emt 00:01:24]} Rfe8 {[%clk
00:10:02]} {[%emt 00:04:01]} 23. Be4 {[%clk 00:12:27]} {[%emt 00:00:34]} Nc6
{[%clk 00:05:10]} {[%emt 00:05:21]} 24. Nc4 {[%clk 00:12:37]} {[%emt 00:00:20]}
Qb4 {[%clk 00:05:09]} {[%emt 00:00:32]} 25. Nd6 {[%clk 00:11:25]} {[%emt
00:01:42]} Qxa3 {[%clk 00:03:21]} {[%emt 00:02:18]} 26. bxa3 {[%clk 00:11:49]}
{[%emt 00:00:05]} Be7 {[%clk 00:02:27]} {[%emt 00:01:24]} 27. Nxe8 {[%clk
00:11:11]} {[%emt 00:01:09]} Bxa3 {[%clk 00:01:32]} {[%emt 00:01:25]} 28. Rc4
{[%clk 00:09:54]} {[%emt 00:01:47]} Rxe8 {[%clk 00:01:16]} {[%emt 00:00:46]} 29.
Bxc6 {[%clk 00:10:19]} {[%emt 00:00:04]} bxc6 {[%clk 00:01:41]} {[%emt
00:00:05]} 30. Rxd4 {[%clk 00:09:47]} {[%emt 00:01:02]} Re2 {[%clk 00:01:51]}
{[%emt 00:00:20]} 31. Rc4 {[%clk 00:08:54]} {[%emt 00:01:24]} Rd2 {[%clk
00:01:02]} {[%emt 00:01:18]} 32. Rxc6 {[%clk 00:07:57]} {[%emt 00:01:28]} Rxd3
{[%clk 00:01:18]} {[%emt 00:00:13]} 33. Rc2 {[%clk 00:07:48]} {[%emt 00:00:40]}
a5 {[%clk 00:01:15]} {[%emt 00:00:32]} 34. Rb1 {[%clk 00:07:27]} {[%emt
00:00:51]} Bb4 {[%clk 00:01:12]} {[%emt 00:00:34]} 35. Kg2 {[%clk 00:07:20]}
{[%emt 00:00:36]} Kf8 {[%clk 00:01:08]} {[%emt 00:00:34]} 36. Rb3 {[%clk
00:07:22]} {[%emt 00:00:28]} Rd6 {[%clk 00:01:05]} {[%emt 00:00:33]} 37. Kf3
{[%clk 00:03:07]} {[%emt 00:04:45]} Rf6+ {[%clk 00:00:52]} {[%emt 00:00:44]} 38.
Ke2 {[%clk 00:02:57]} {[%emt 00:00:38]} Ke7 {[%clk 00:00:58]} {[%emt 00:00:25]}
39. Rd3 {[%clk 00:01:36]} {[%emt 00:01:49]} Rb6 {[%clk 00:00:46]} {[%emt
00:00:44]} 40. Rc7+ {[%clk 00:01:18]} {[%emt 00:00:48]} Ke6 {[%clk 00:00:39]}
{[%emt 00:00:37]} 41. Re3+ {[%clk 00:28:40]} {[%emt 00:03:05]} Kf6 {[%clk
00:29:45]} {[%emt 00:01:27]} 42. Rf3+ {[%clk 00:28:51]} {[%emt 00:00:19]} Kg6
{[%clk 00:30:01]} {[%emt 00:00:14]} 43. Rfxf7 {[%clk 00:27:40]} {[%emt
00:01:41]} Bc3 {[%emt 00:02:11]} 44. Rb7 {[%clk 00:26:44]} Rd6 {[%clk
00:29:33]} {[%emt 00:00:43]} 45. Rfd7 {[%clk 00:26:45]} {[%emt 00:00:29]} Re6+
{[%clk 00:28:25]} {[%emt 00:01:38]} 46. Kd3 {[%clk 00:26:54]} {[%emt 00:00:21]}
Bf6 {[%clk 00:28:29]} {[%emt 00:00:26]} 47. Rb5 {[%clk 00:26:27]} {[%emt
00:00:56]} Ra6 {[%clk 00:28:48]} {[%emt 00:00:12]} 48. Rdd5 {[%clk 00:26:34]}
{[%emt 00:00:23]} a4 {[%clk 00:29:00]} {[%emt 00:00:19]} 49. Ra5 {[%clk
00:26:41]} {[%emt 00:00:23]} 1-0

[Event "NJSK 2018 Jeugd A"]
[Site "Assen, Netherlands"]
[Date "2018.04.29"]
[Round "1.7"]
[White "Kanbier, Max"]
[Black "De Boer, Bas"]
[Result "1/2-1/2"]
[TimeControl "40/90m+30m+30sec/move"]
[WhiteElo "1857"]
[BlackElo "2159"]

1. f4 {[%clk 01:30:57]} {[%emt 00:00:03]} Nf6 {[%clk 01:30:00]} {[%emt
00:01:01]} 2. Nf3 {[%clk 01:31:21]} {[%emt 00:00:06]} d6 {[%clk 01:29:33]}
{[%emt 00:00:56]} 3. Nc3 {[%clk 01:31:18]} {[%emt 00:00:34]} Nc6 {[%clk
01:28:39]} {[%emt 00:01:24]} 4. e4 {[%clk 01:30:58]} {[%emt 00:00:50]} e5
{[%clk 01:28:54]} {[%emt 00:00:14]} 5. Bb5 {[%clk 01:28:54]} {[%emt 00:02:35]}
Bd7 {[%clk 01:24:47]} {[%emt 00:04:36]} 6. d3 {[%clk 01:27:09]} {[%emt
00:02:16]} Nd4 {[%clk 01:21:57]} {[%emt 00:03:20]} 7. Bxd7+ {[%clk 01:22:13]}
{[%emt 00:05:26]} Qxd7 {[%clk 01:22:00]} {[%emt 00:00:27]} 8. Be3 {[%clk
01:22:17]} {[%emt 00:00:25]} Nc6 {[%clk 01:15:58]} {[%emt 00:06:32]} 9. Qe2
{[%clk 01:20:58]} {[%emt 00:01:50]} O-O-O {[%clk 01:12:58]} {[%emt 00:03:29]}
10. O-O-O {[%clk 01:19:12]} {[%emt 00:02:17]} Ng4 {[%clk 01:09:19]} {[%emt
00:04:09]} 11. d4 {[%clk 01:13:12]} {[%emt 00:06:30]} Nxe3 {[%clk 01:03:47]}
{[%emt 00:06:01]} 12. Qxe3 {[%clk 01:13:22]} {[%emt 00:00:20]} exf4 {[%clk
01:04:13]} {[%emt 00:00:05]} 13. Qxf4 {[%clk 01:13:20]} {[%emt 00:00:31]} g5
{[%clk 00:57:01]} {[%emt 00:07:42]} 14. Nxg5 {[%clk 01:02:42]} {[%emt
00:11:09]} Bh6 {[%clk 00:48:42]} {[%emt 00:08:47]} 15. h4 {[%clk 01:02:01]}
{[%emt 00:01:12]} f6 {[%clk 00:45:44]} {[%emt 00:03:27]} 16. Qxf6 {[%clk
01:01:18]} {[%emt 00:01:15]} Bg7 {[%clk 00:46:07]} {[%emt 00:00:06]} 17. Qf5
{[%clk 01:00:16]} {[%emt 00:01:32]} Nxd4 {[%clk 00:45:37]} {[%emt 00:01:00]} 18.
Qh3 {[%clk 00:58:38]} {[%emt 00:02:09]} Rhf8 {[%clk 00:34:09]} {[%emt
00:11:57]} 19. Rhf1 {[%clk 00:50:33]} {[%emt 00:08:35]} h6 {[%clk 00:29:06]}
{[%emt 00:05:33]} 20. Qxd7+ {[%clk 00:48:49]} {[%emt 00:02:14]} Kxd7 {[%clk
00:28:55]} {[%emt 00:00:41]} 21. Nf3 {[%clk 00:48:08]} {[%emt 00:01:12]} Nxf3
{[%clk 00:29:05]} {[%emt 00:00:19]} 22. Rxf3 {[%clk 00:48:09]} {[%emt
00:00:29]} Rxf3 {[%clk 00:20:35]} {[%emt 00:09:00]} 23. gxf3 {[%clk 00:48:35]}
{[%emt 00:00:05]} Rf8 {[%clk 00:20:53]} {[%emt 00:00:10]} 24. Rd3 {[%clk
00:46:35]} {[%emt 00:02:31]} Rf4 {[%clk 00:19:37]} {[%emt 00:01:40]} 25. h5
{[%clk 00:46:17]} {[%emt 00:00:54]} Rh4 {[%clk 00:19:52]} {[%emt 00:00:16]} 26.
Ne2 {[%clk 00:42:04]} {[%emt 00:04:43]} Be5 {[%clk 00:14:41]} {[%emt 00:05:39]}
27. f4 {[%clk 00:37:59]} {[%emt 00:04:36]} Bxf4+ {[%clk 00:14:25]} {[%emt
00:00:46]} 28. Nxf4 {[%clk 00:38:23]} {[%emt 00:00:07]} Rxf4 {[%clk 00:14:47]}
{[%emt 00:00:08]} 29. e5 {[%clk 00:38:49]} {[%emt 00:00:04]} Rf5 {[%clk
00:14:03]} {[%emt 00:01:12]} 30. exd6 {[%clk 00:39:12]} {[%emt 00:00:09]} Rxh5
{[%clk 00:11:24]} {[%emt 00:03:09]} 31. dxc7+ {[%clk 00:39:33]} {[%emt
00:00:10]} Kxc7 {[%clk 00:11:49]} {[%emt 00:00:04]} 32. Kd2 {[%clk 00:39:22]}
{[%emt 00:00:40]} Rh2+ {[%clk 00:11:26]} {[%emt 00:00:53]} 1/2-1/2

[Event "NJSK 2018 Jeugd A"]
[Site "Assen, Netherlands"]
[Date "2018.04.29"]
[Round "1.8"]
[White "Nguyen, Kevin"]
[Black "Gijsen, William"]
[Result "1-0"]
[TimeControl "40/90m+30m+30sec/move"]
[WhiteElo "2122"]
[BlackElo "1825"]

1. e4 {[%clk 01:30:57]} {[%emt 00:00:04]} c5 {[%clk 01:30:55]} {[%emt
00:00:06]} 2. Nc3 {[%clk 01:31:22]} {[%emt 00:00:05]} g6 {[%clk 01:30:40]}
{[%emt 00:00:43]} 3. g3 {[%clk 01:31:48]} {[%emt 00:00:05]} Bg7 {[%clk
01:31:05]} {[%emt 00:00:06]} 4. Bg2 {[%clk 01:32:13]} {[%emt 00:00:06]} Nc6
{[%clk 01:31:02]} {[%emt 00:00:32]} 5. d3 {[%clk 01:32:38]} {[%emt 00:00:05]}
d6 {[%clk 01:30:35]} {[%emt 00:00:57]} 6. f4 {[%clk 01:33:02]} {[%emt
00:00:06]} e5 {[%clk 01:27:22]} {[%emt 00:03:43]} 7. Nf3 {[%clk 01:29:42]}
{[%emt 00:03:49]} Nge7 {[%clk 01:26:12]} {[%emt 00:01:41]} 8. Be3 {[%clk
01:29:05]} {[%emt 00:01:07]} Nd4 {[%clk 01:25:02]} {[%emt 00:01:39]} 9. Bf2
{[%clk 01:25:58]} {[%emt 00:03:37]} Bg4 {[%clk 01:22:16]} {[%emt 00:03:16]} 10.
h3 {[%clk 01:25:40]} {[%emt 00:00:49]} Bxf3 {[%clk 01:20:04]} {[%emt 00:02:42]}
11. Bxf3 {[%clk 01:25:39]} {[%emt 00:00:31]} Nxf3+ {[%clk 01:20:26]} {[%emt
00:00:08]} 12. Qxf3 {[%clk 01:26:05]} {[%emt 00:00:04]} Rc8 {[%clk 01:19:51]}
{[%emt 00:01:06]} 13. O-O {[%clk 01:23:48]} {[%emt 00:02:46]} f6 {[%clk
01:10:14]} {[%emt 00:10:07]} 14. f5 {[%clk 01:16:04]} {[%emt 00:08:13]} Qd7
{[%clk 01:08:43]} {[%emt 00:02:02]} 15. Be3 {[%clk 01:12:37]} {[%emt 00:03:57]}
h5 {[%clk 00:51:39]} {[%emt 00:17:34]} 16. g4 {[%clk 01:05:53]} {[%emt
00:07:14]} hxg4 {[%clk 00:49:05]} {[%emt 00:03:03]} 17. hxg4 {[%clk 01:06:07]}
{[%emt 00:00:17]} gxf5 {[%clk 00:49:12]} {[%emt 00:00:23]} 18. gxf5 {[%clk
01:04:14]} {[%emt 00:02:22]} Kd8 {[%clk 00:48:13]} {[%emt 00:01:29]} 19. Rf2
{[%clk 01:02:52]} {[%emt 00:01:53]} Kc7 {[%clk 00:41:35]} {[%emt 00:07:08]} 20.
Rg2 {[%clk 01:02:55]} {[%emt 00:00:27]} Bf8 {[%clk 00:39:47]} {[%emt 00:02:18]}
21. Rf1 {[%clk 00:58:16]} {[%emt 00:05:09]} Kb8 {[%clk 00:39:31]} {[%emt
00:00:45]} 22. Rff2 {[%clk 00:58:19]} {[%emt 00:00:27]} b5 {[%clk 00:39:04]}
{[%emt 00:00:58]} 23. a3 {[%clk 00:50:54]} {[%emt 00:07:55]} b4 {[%clk
00:38:59]} {[%emt 00:00:35]} 24. axb4 {[%clk 00:51:20]} {[%emt 00:00:04]} cxb4
{[%clk 00:39:23]} {[%emt 00:00:06]} 25. Nb1 {[%clk 00:46:34]} {[%emt 00:05:16]}
Qa4 {[%clk 00:35:46]} {[%emt 00:04:07]} 26. c3 {[%clk 00:44:37]} {[%emt
00:02:27]} a5 {[%clk 00:30:28]} {[%emt 00:05:47]} 27. d4 {[%clk 00:40:59]}
{[%emt 00:04:08]} Qa2 {[%clk 00:29:58]} {[%emt 00:01:00]} 28. Qd1 {[%clk
00:39:24]} {[%emt 00:02:06]} Qc4 {[%clk 00:22:50]} {[%emt 00:07:38]} 29. dxe5
{[%clk 00:34:36]} {[%emt 00:05:17]} dxe5 {[%clk 00:20:21]} {[%emt 00:02:58]} 30.
Qd6+ {[%clk 00:33:45]} {[%emt 00:01:22]} Qc7 {[%clk 00:17:31]} {[%emt
00:03:20]} 31. Qxf6 {[%clk 00:33:16]} {[%emt 00:00:59]} Rh3 {[%clk 00:17:08]}
{[%emt 00:00:53]} 32. Bb6 {[%clk 00:32:00]} {[%emt 00:01:47]} Qd7 {[%clk
00:11:15]} {[%emt 00:06:23]} 33. Qxe5+ {[%clk 00:31:49]} {[%emt 00:00:41]} Kb7
{[%clk 00:11:24]} {[%emt 00:00:20]} 34. Rd2 {[%clk 00:29:10]} {[%emt 00:03:09]}
Qc6 {[%clk 00:10:51]} {[%emt 00:01:03]} 35. Bd4 {[%clk 00:26:58]} {[%emt
00:02:42]} Bh6 {[%clk 00:07:50]} {[%emt 00:03:31]} 36. Qxe7+ {[%clk 00:26:58]}
{[%emt 00:00:30]} Rc7 {[%clk 00:08:01]} {[%emt 00:00:19]} 37. Qe6 {[%clk
00:27:00]} {[%emt 00:00:29]} 1-0

[Event "NJSK 2018 Jeugd A"]
[Site "Assen, Netherlands"]
[Date "2018.04.29"]
[Round "1.9"]
[White "Van der Werf, Joel"]
[Black "Jongste, David"]
[Result "0-1"]
[TimeControl "40/90m+30m+30sec/move"]
[WhiteElo "1842"]
[BlackElo "2092"]

1. e4 {[%clk 01:30:58]} {[%emt 00:00:02]} c5 {[%clk 01:30:54]} {[%emt
00:00:07]} 2. Nf3 {[%clk 01:31:22]} {[%emt 00:00:06]} a6 {[%clk 01:31:10]}
{[%emt 00:00:13]} 3. c3 {[%clk 01:31:46]} {[%emt 00:00:07]} Nf6 {[%clk
01:31:10]} {[%emt 00:00:27]} 4. e5 {[%clk 01:31:34]} {[%emt 00:00:42]} Nd5
{[%clk 01:31:23]} {[%emt 00:00:17]} 5. d4 {[%clk 01:31:40]} {[%emt 00:00:25]}
cxd4 {[%clk 01:31:16]} {[%emt 00:00:37]} 6. cxd4 {[%clk 01:31:57]} {[%emt
00:00:13]} d6 {[%clk 01:30:28]} {[%emt 00:01:18]} 7. Nc3 {[%clk 01:31:20]}
{[%emt 00:01:07]} Nxc3 {[%clk 01:30:01]} {[%emt 00:00:58]} 8. bxc3 {[%clk
01:31:44]} {[%emt 00:00:05]} d5 {[%clk 01:22:22]} {[%emt 00:08:09]} 9. Bd3
{[%clk 01:20:57]} {[%emt 00:11:17]} g6 {[%clk 01:15:56]} {[%emt 00:06:56]} 10.
O-O {[%clk 01:19:52]} {[%emt 00:01:35]} Bg7 {[%clk 01:12:28]} {[%emt 00:03:58]}
11. Re1 {[%clk 01:19:10]} {[%emt 00:01:11]} Bg4 {[%clk 01:06:08]} {[%emt
00:06:50]} 12. h3 {[%clk 01:14:50]} {[%emt 00:04:51]} Bxf3 {[%clk 01:04:34]}
{[%emt 00:02:04]} 13. Qxf3 {[%clk 01:13:00]} {[%emt 00:02:20]} Nc6 {[%clk
00:54:51]} {[%emt 00:10:13]} 14. Bc2 {[%clk 00:38:40]} {[%emt 00:34:50]} Qd7
{[%clk 00:46:05]} {[%emt 00:09:15]} 15. Qg3 {[%clk 00:32:41]} {[%emt 00:06:29]}
O-O {[%clk 00:37:48]} {[%emt 00:08:47]} 16. f4 {[%clk 00:31:53]} {[%emt
00:01:19]} Rac8 {[%clk 00:35:42]} {[%emt 00:02:36]} 17. f5 {[%clk 00:27:49]}
{[%emt 00:04:34]} Nxd4 {[%clk 00:31:29]} {[%emt 00:04:43]} 18. cxd4 {[%clk
00:28:02]} {[%emt 00:00:17]} Rxc2 {[%clk 00:31:51]} {[%emt 00:00:07]} 19. Rf1
{[%clk 00:26:32]} {[%emt 00:02:01]} Rfc8 {[%clk 00:25:54]} {[%emt 00:06:26]} 20.
Bg5 {[%clk 00:21:43]} {[%emt 00:05:20]} Re2 {[%clk 00:16:17]} {[%emt 00:10:06]}
21. fxg6 {[%clk 00:20:07]} {[%emt 00:02:07]} hxg6 {[%clk 00:12:14]} {[%emt
00:04:32]} 22. Rf2 {[%clk 00:14:11]} {[%emt 00:06:26]} Qa4 {[%clk 00:06:09]}
{[%emt 00:06:35]} 23. Qg4 {[%clk 00:08:50]} {[%emt 00:05:51]} Rcc2 {[%clk
00:04:49]} {[%emt 00:01:50]} 24. Rxe2 {[%clk 00:05:35]} {[%emt 00:03:46]} Rxe2
{[%clk 00:05:13]} {[%emt 00:00:06]} 25. Rc1 {[%clk 00:05:47]} {[%emt 00:00:18]}
Re4 {[%clk 00:04:49]} {[%emt 00:00:54]} 26. Rc8+ {[%clk 00:04:42]} {[%emt
00:01:36]} Bf8 {[%clk 00:03:25]} {[%emt 00:01:53]} 27. Qg3 {[%clk 00:03:07]}
{[%emt 00:02:04]} Qxd4+ {[%clk 00:03:22]} {[%emt 00:00:34]} 28. Kh2 {[%clk
00:02:37]} {[%emt 00:01:00]} Kg7 {[%clk 00:03:01]} {[%emt 00:00:50]} 29. Rc7
{[%clk 00:01:13]} {[%emt 00:01:54]} Qxe5 {[%clk 00:03:10]} {[%emt 00:00:21]} 30.
Qxe5+ {[%clk 00:01:38]} {[%emt 00:00:05]} Rxe5 {[%clk 00:03:32]} {[%emt
00:00:09]} 31. Bc1 {[%clk 00:02:00]} {[%emt 00:00:07]} Re2 {[%clk 00:03:45]}
{[%emt 00:00:17]} 32. a3 {[%clk 00:00:48]} {[%emt 00:01:42]} e6 {[%clk
00:03:33]} {[%emt 00:00:42]} 33. Bf4 {[%clk 00:00:43]} {[%emt 00:00:35]} Bxa3
{[%clk 00:03:18]} {[%emt 00:00:45]} 34. Rxb7 {[%clk 00:01:06]} {[%emt
00:00:07]} e5 {[%clk 00:03:24]} {[%emt 00:00:24]} 35. Rb3 {[%clk 00:00:53]}
{[%emt 00:00:43]} Be7 {[%clk 00:02:39]} {[%emt 00:01:16]} 36. Bg3 {[%clk
00:01:00]} {[%emt 00:00:23]} d4 {[%clk 00:02:41]} {[%emt 00:00:27]} 0-1

[Event "NJSK 2018 Jeugd A"]
[Site "Assen, Netherlands"]
[Date "2018.04.30"]
[Round "2.1"]
[White "Vrolijk, Liam"]
[Black "Van Baar, Esper"]
[Result "1/2-1/2"]
[TimeControl "40/90m+30m+30sec/move"]
[WhiteElo "2432"]
[BlackElo "2237"]

1. Nf3 {[%clk 01:30:55]} {[%emt 00:00:03]} Nf6 {[%clk 01:30:48]} {[%emt
00:00:13]} 2. g3 {[%clk 01:31:19]} {[%emt 00:00:06]} d5 {[%clk 01:30:49]}
{[%emt 00:00:30]} 3. Bg2 {[%clk 01:31:36]} {[%emt 00:00:13]} e6 {[%clk
01:30:24]} {[%emt 00:00:54]} 4. c4 {[%clk 01:31:28]} {[%emt 00:00:38]} Be7
{[%clk 01:29:53]} {[%emt 00:01:01]} 5. O-O {[%clk 01:31:28]} {[%emt 00:00:29]}
O-O {[%clk 01:28:54]} {[%emt 00:01:30]} 6. d4 {[%clk 01:29:48]} {[%emt
00:02:10]} dxc4 {[%clk 01:29:00]} {[%emt 00:00:24]} 7. Ne5 {[%clk 01:28:02]}
{[%emt 00:02:16]} Nc6 {[%clk 01:28:47]} {[%emt 00:00:42]} 8. Nxc6 {[%clk
01:28:04]} {[%emt 00:00:29]} bxc6 {[%clk 01:29:07]} {[%emt 00:00:11]} 9. Na3
{[%clk 01:28:26]} {[%emt 00:00:07]} Bxa3 {[%clk 01:29:19]} {[%emt 00:00:19]} 10.
bxa3 {[%clk 01:28:48]} {[%emt 00:00:07]} Ba6 {[%clk 01:29:14]} {[%emt
00:00:34]} 11. Qd2 {[%clk 01:29:07]} {[%emt 00:00:12]} Rb8 {[%clk 01:29:29]}
{[%emt 00:00:15]} 12. Qa5 {[%clk 01:28:34]} {[%emt 00:01:03]} Qc8 {[%clk
01:29:15]} {[%emt 00:00:44]} 13. a4 {[%clk 01:27:39]} {[%emt 00:01:25]} Rd8
{[%clk 01:29:04]} {[%emt 00:00:41]} 14. Ba3 {[%clk 01:24:50]} {[%emt 00:03:19]}
c3 {[%clk 01:26:36]} {[%emt 00:02:58]} 15. Qxc3 {[%clk 01:20:53]} {[%emt
00:04:27]} Bxe2 {[%clk 01:26:41]} {[%emt 00:00:25]} 16. Rfc1 {[%clk 01:01:45]}
{[%emt 00:19:38]} Nd5 {[%clk 01:06:20]} {[%emt 00:20:51]} 17. Qxc6 {[%clk
00:59:55]} {[%emt 00:02:19]} Qa6 {[%clk 00:59:45]} {[%emt 00:07:06]} 18. Bxd5
{[%clk 00:49:56]} {[%emt 00:10:29]} Rxd5 {[%clk 00:44:06]} {[%emt 00:16:10]} 19.
Rab1 {[%clk 00:49:57]} {[%emt 00:00:28]} Rbd8 {[%clk 00:39:30]} {[%emt
00:05:06]} 20. Be7 {[%clk 00:38:16]} {[%emt 00:12:11]} Qxc6 {[%clk 00:38:44]}
{[%emt 00:01:16]} 21. Rxc6 {[%clk 00:38:37]} {[%emt 00:00:09]} Re8 {[%clk
00:38:39]} {[%emt 00:00:35]} 22. Rxc7 {[%clk 00:35:52]} {[%emt 00:03:15]} Rxd4
{[%clk 00:36:07]} {[%emt 00:03:02]} 23. Rxa7 {[%clk 00:36:03]} {[%emt
00:00:18]} h6 {[%clk 00:31:34]} {[%emt 00:05:04]} 24. Bc5 {[%clk 00:34:16]}
{[%emt 00:02:17]} Rd5 {[%clk 00:27:46]} {[%emt 00:04:18]} 25. Bb6 {[%clk
00:29:37]} {[%emt 00:05:08]} Bf3 {[%clk 00:24:01]} {[%emt 00:04:15]} 26. Rc1
{[%clk 00:27:57]} {[%emt 00:02:10]} e5 {[%clk 00:22:53]} {[%emt 00:01:39]} 27.
a5 {[%clk 00:22:09]} {[%emt 00:06:17]} Rd2 {[%clk 00:21:06]} {[%emt 00:02:17]}
28. a4 {[%clk 00:19:17]} {[%emt 00:03:22]} Re6 {[%clk 00:17:49]} {[%emt
00:03:47]} 29. Rac7 {[%clk 00:14:20]} {[%emt 00:05:27]} Red6 {[%clk 00:16:53]}
{[%emt 00:01:26]} 30. Re1 {[%clk 00:14:43]} {[%emt 00:00:07]} Rd1 {[%clk
00:12:37]} {[%emt 00:04:47]} 31. Rc1 {[%clk 00:15:06]} {[%emt 00:00:06]} Rxc1
{[%clk 00:11:41]} {[%emt 00:01:27]} 32. Rxc1 {[%clk 00:15:30]} {[%emt
00:00:06]} Rd1+ {[%clk 00:07:59]} {[%emt 00:04:12]} 33. Rxd1 {[%clk 00:15:53]}
{[%emt 00:00:07]} Bxd1 {[%clk 00:08:27]} {[%emt 00:00:02]} 34. a6 {[%clk
00:16:14]} {[%emt 00:00:09]} Bxa4 {[%clk 00:08:50]} {[%emt 00:00:06]} 35. a7
{[%clk 00:16:39]} {[%emt 00:00:06]} Bc6 {[%clk 00:09:17]} {[%emt 00:00:03]} 36.
Kf1 {[%clk 00:17:04]} {[%emt 00:00:05]} f5 {[%clk 00:06:53]} {[%emt 00:02:54]}
37. Ke2 {[%clk 00:17:22]} {[%emt 00:00:11]} Kf7 {[%clk 00:07:14]} {[%emt
00:00:09]} 38. Kd3 {[%clk 00:17:45]} {[%emt 00:00:07]} Ke6 {[%clk 00:06:57]}
{[%emt 00:00:47]} 39. Kc4 {[%clk 00:18:08]} {[%emt 00:00:07]} h5 {[%clk
00:01:49]} {[%emt 00:05:38]} 40. Bd8 {[%clk 00:18:19]} {[%emt 00:00:19]} Ba8
{[%clk 00:01:14]} {[%emt 00:01:06]} 41. Kc5 {[%clk 00:18:41]} {[%emt 00:00:08]}
Kd7 {[%clk 00:00:51]} {[%emt 00:00:52]} 42. Ba5 {[%clk 00:19:05]} {[%emt
00:00:06]} g6 {[%clk 00:00:50]} {[%emt 00:00:31]} 43. Bc3 {[%clk 00:19:18]}
{[%emt 00:00:17]} e4 {[%clk 00:30:29]} {[%emt 00:00:51]} 44. Bd2 {[%clk
00:49:41]} {[%emt 00:00:07]} Bb7 {[%clk 00:29:59]} {[%emt 00:01:00]} 45. h4
{[%clk 00:50:04]} {[%emt 00:00:07]} 1/2-1/2